bitfinex/quotes_ETHUSD_20251212
["timestamp","ask_amount","ask_price","bid_price","bid_amount"]
[1765570916927,1.4782,3077.3,3076.5,0.056]
[1765570917113,2.34573296,3077.3,3076.6,3.2503167]
[1765570917422,0.517,3077.3,3077.2,0.1352]
[1765570921137,4.24310192,3077.3,3076.5,3.306419]
[1765570921437,7.97740384,3077.3,3076.5,0.63647529]
[1765570921639,7.97740384,3077.3,3076.5,0.056]
[1765570921843,1.28244038,3077.2,3075.9,0.09444716]
[1765570922052,1.28244038,3077.2,3076.2,3.25073843]
[1765570922346,1.28244038,3077.2,3076.1,0.1352]
[1765570922347,1.28244038,3077.2,3076.4,0.58047529]
[1765570922710,1.28244038,3077.2,3076.4,3.25054782]
[1765570922906,0.82986442,3077.1,3076.4,3.25054782]
[1765570923106,7.01620384,3077.3,3077.0,0.1352]
[1765570923336,7.01620384,3077.3,3076.1,0.58047529]
[1765570923337,7.01620384,3077.3,3076.4,3.83099021]
[1765570923506,0.4847,3077.2,3076.4,0.58047529]
[1765570923914,3.24981313,3077.1,3076.4,3.83096759]
[1765570924137,3.24973487,3077.2,3076.4,3.83096759]
[1765570924441,3.24973487,3077.2,3076.5,0.1352]
[1765570924843,0.517,3077.3,3076.5,0.1352]
[1765570924844,3.76664843,3077.3,3076.5,0.1352]
[1765570925012,4.19178327,3077.3,3076.5,0.1352]
[1765570925346,0.517,3077.3,3076.5,0.1352]
[1765570925547,0.517,3077.3,3077.2,0.1352]
[1765570925914,3.76660192,3077.3,3077.2,0.1352]
[1765570927435,0.517,3077.3,3077.2,0.1352]
[1765570928339,3.76660192,3077.3,3077.2,0.1352]
[1765570928544,3.76660192,3077.3,3076.9,0.056]
[1765570928869,3.76660192,3077.3,3076.4,3.76753975]
[1765570928870,0.4765,3076.9,3076.3,0.056]
[1765570929020,0.4847,3077.2,3075.9,0.002]
[1765570929021,0.4765,3076.7,3076.1,0.58047529]
[1765570929356,0.4765,3076.7,3076.0,0.58047529]
[1765570930347,6.50068256,3076.6,3075.9,0.58247529]
[1765570930544,6.50068256,3076.6,3075.9,0.002]
[1765570930744,1.13476826,3076.5,3075.9,0.002]
[1765570930919,0.517,3076.4,3075.9,0.002]
[1765570931119,1.0017,3076.4,3075.9,0.002]
[1765570931517,0.517,3076.4,3075.9,0.002]
[1765570932046,0.517,3076.4,3076.3,0.1352]
[1765570932612,3.24987763,3077.1,3076.3,0.1352]
[1765570932613,3.24978888,3077.2,3076.3,0.2704]
[1765570932819,0.517,3077.1,3076.4,0.2704]
[1765570933036,0.517,3077.1,3076.4,0.1352]
[1765570933238,1.0017,3077.1,3076.4,0.1352]
[1765570933416,0.517,3077.1,3077.0,0.1352]
[1765570935655,0.405504,3078.2,3077.0,0.1352]
[1765570935839,6.4973036,3078.2,3077.8,0.1352]
[1765570936021,6.4973036,3078.2,3077.2,0.09444716]
[1765570936022,0.517,3078.1,3077.2,0.09444716]
[1765570936354,0.517,3078.1,3077.2,0.22964716]
[1765570936562,0.517,3078.1,3078.0,0.1352]
[1765570936857,4.72695735,3078.1,3077.3,3.24960192]
[1765570937020,4.72695735,3078.1,3077.3,0.58047529]
[1765570937220,0.4847,3078.0,3077.1,0.056]
[1765570937455,3.76575735,3078.1,3077.2,3.47935309]
[1765570937655,3.76575735,3078.1,3077.2,6.72906061]
[1765570937954,3.76575735,3078.1,3077.3,0.1352]
[1765570938620,3.76575735,3078.1,3077.5,3.24938152]
[1765570938837,3.76575735,3078.1,3077.4,0.09444716]
[1765570939042,0.9827,3078.0,3077.3,0.58047529]
[1765570939443,0.1917,3077.9,3077.3,0.58047529]
[1765570939760,0.1917,3077.9,3077.3,3.24960086]
[1765570940057,0.1917,3077.9,3077.2,3.24968759]
[1765570940361,0.1917,3077.9,3077.2,3.2496897]
[1765570940657,3.44072079,3077.9,3077.3,0.58047529]
[1765570940954,4.23160112,3078.0,3077.3,0.58047529]
[1765570941850,7.01480224,3078.0,3077.1,0.63647529]
[1765570942022,0.4944,3077.9,3077.1,0.63647529]
[1765570942214,0.4944,3077.9,3077.1,3.30576505]
[1765570942416,7.01480224,3078.0,3077.1,3.44096505]
[1765570942642,0.75092022,3077.9,3077.1,3.44096505]
[1765570942852,3.24900812,3077.9,3077.1,6.55557818]
[1765570943055,3.24900812,3077.9,3077.2,0.1352]
[1765570943830,3.76587868,3078.0,3077.8,0.1352]
[1765570944045,3.76586289,3078.0,3077.9,0.1352]
[1765570944240,3.76586289,3078.0,3077.2,0.1352]
[1765570946061,0.517,3078.0,3077.4,0.58047529]
[1765570946260,3.76586289,3078.0,3077.4,0.58047529]
[1765570946660,3.76586289,3078.0,3077.0,0.58047529]
[1765570946661,0.4917,3077.5,3077.0,0.58047529]
[1765570946838,0.517,3077.4,3077.0,0.58047529]
[1765570947039,0.517,3077.4,3077.1,0.58047529]
[1765570947558,0.517,3077.4,3077.0,0.58047529]
[1765570947847,0.517,3077.4,3077.0,3.83039073]
[1765570948040,0.517,3077.4,3076.9,0.58047529]
[1765570948433,0.517,3077.4,3076.9,0.71567529]
[1765570948632,0.517,3077.4,3076.9,3.96569966]
[1765570949061,0.517,3077.4,3077.3,0.1352]
[1765570949768,0.517,3077.4,3077.3,0.2704]
[1765570949955,3.76610742,3077.8,3077.3,0.2704]
[1765570950774,0.4944,3077.7,3076.8,0.573]
[1765570951273,0.4944,3077.7,3077.1,3.24980589]
[1765570951475,0.4944,3077.6,3077.0,3.24984678]
[1765570951681,0.4944,3077.6,3077.0,0.58047529]
[1765570952190,3.24939073,3077.5,3076.8,0.056]
[1765570952360,3.24939073,3077.5,3077.0,0.58047529]
[1765570952559,3.74372305,3077.6,3077.0,3.24990821]
[1765570952788,3.24932305,3077.6,3077.0,3.24990821]
[1765570953141,3.24932305,3077.6,3076.9,3.83042884]
[1765570953376,6.9930461,3077.6,3076.9,0.58047529]
[1765570953575,7.32667059,3077.6,3076.4,0.58047529]
[1765570953781,0.4917,3076.5,3075.9,3.25299258]
[1765570954085,3.74220089,3076.5,3075.9,0.002]
[1765570954294,0.4917,3076.5,3075.9,0.58247529]
[1765570954652,3.74215143,3076.5,3075.9,0.58247529]
[1765570954856,0.4917,3076.5,3075.9,0.58247529]
[1765570955067,0.517,3076.6,3076.4,0.1352]
[1765570959085,0.517,3076.6,3076.5,0.1352]
[1765570959882,0.4944,3077.0,3076.2,3.25070086]
[1765570959883,3.76702437,3076.9,3076.2,3.25070086]
[1765570960683,3.76702437,3076.9,3076.1,6.5017392]
[1765570960865,0.517,3076.9,3076.8,0.1352]
[1765570961883,3.24981749,3077.1,3076.8,0.1352]
[1765570963075,3.76675238,3077.2,3076.8,0.1352]
[1765570963374,7.51090476,3077.2,3076.4,3.38571805]
[1765570963686,0.4944,3077.1,3076.4,0.58047529]
[1765570964987,3.74431473,3077.1,3076.4,3.83095213]
[1765570965589,3.74431473,3077.1,3076.3,3.83107512]
[1765570965776,0.4944,3077.0,3076.3,3.25059983]
[1765570966487,0.4944,3077.0,3076.2,3.25073115]
[1765570967976,6.50004874,3076.9,3076.1,3.96651091]
[1765570968372,3.74442437,3076.9,3076.1,7.21738051]
[1765570968786,0.517,3076.8,3076.1,3.96651091]
[1765570969026,1.0114,3076.8,3076.1,0.58047529]
[1765570969189,1.76254487,3076.8,3075.9,0.1372]
[1765570969491,0.4944,3076.7,3075.9,0.1372]
[1765570969787,0.4944,3076.7,3076.1,3.25085545]
[1765570970154,1.26814487,3076.8,3076.1,3.25085545]
[1765570970155,0.517,3076.8,3076.6,0.1352]
[1765570970361,0.517,3076.8,3076.7,0.1352]
[1765570973491,0.58047529,3077.4,3076.7,0.1352]
[1765570973492,3.24918088,3077.7,3076.7,6.77087128]
[1765570973794,0.517,3077.6,3076.9,0.1352]
[1765570974363,1.0158,3077.6,3076.9,0.1352]
[1765570975180,0.4988,3077.5,3076.9,0.1352]
[1765570975894,0.517,3077.6,3077.4,0.1352]
[1765570977200,0.9634,3077.5,3077.0,3.24991875]
[1765570977600,0.9634,3077.5,3076.9,3.8864623]
[1765570977795,4.21283894,3077.5,3076.9,3.8864623]
[1765570978000,3.71403894,3077.5,3076.9,3.8864623]
[1765570978201,0.4988,3077.4,3076.9,3.8864623]
[1765570978898,0.4988,3077.4,3076.8,0.58047529]
[1765570979784,3.74830497,3077.4,3076.8,3.83054876]
[1765570980288,3.76636006,3077.6,3076.8,3.83054876]
[1765570980699,3.76636006,3077.6,3076.9,0.1352]
[1765570981205,0.58047529,3078.8,3077.5,0.1352]
[1765570981404,1.0158,3078.1,3076.9,0.517]
[1765570981605,0.517,3078.0,3076.9,1.23267529]
[1765570981917,7.17835527,3077.9,3077.0,0.50624347]
[1765570982077,7.17835527,3077.9,3076.5,0.1912]
[1765570982078,7.17835527,3077.9,3076.9,0.58047529]
[1765570982278,7.17835527,3077.9,3076.5,0.7082]
[1765570982279,0.4988,3077.8,3076.5,0.7082]
[1765570982588,0.4988,3077.8,3077.0,0.58047529]
[1765570983512,0.4988,3077.8,3077.0,3.24991714]
[1765570983709,0.4988,3077.8,3077.0,0.58047529]
[1765570983879,6.49835916,3077.7,3077.0,0.58047529]
[1765570984204,0.517,3077.6,3077.0,0.58047529]
[1765570984382,1.0158,3077.6,3077.0,3.2499098]
[1765570985109,0.1816,3077.9,3077.5,0.1352]
[1765570985311,0.4988,3078.7,3077.8,0.1352]
[1765570985474,0.517,3078.7,3077.8,0.1352]
[1765570985675,0.4988,3078.6,3077.8,0.1352]
[1765570985911,0.517,3078.7,3077.9,3.24896845]
[1765570986097,0.4988,3078.9,3078.0,0.58047529]
[1765570986421,3.24883107,3079.0,3078.6,0.1352]
[1765570987377,0.001,3079.0,3078.6,0.1352]
[1765570987987,0.001,3079.0,3078.6,3.38341923]
[1765570988216,0.001,3079.0,3078.6,0.1352]
[1765570989516,0.001,3079.0,3078.9,0.1352]
[1765570990320,0.001,3079.0,3078.9,3.51831321]
[1765570992096,0.001,3079.0,3078.9,4.6157885]
[1765570993622,0.001,3079.0,3078.9,6.8476795]
[1765570994330,0.001,3079.0,3078.9,6.1954795]
[1765570994512,0.001,3079.0,3078.9,6.8476795]
[1765570995028,0.001,3079.0,3078.9,6.7124795]
[1765570995320,0.001,3079.0,3078.9,6.8476795]
[1765570996922,0.001,3079.0,3078.9,6.7976795]
[1765570997422,0.001,3079.0,3078.9,4.5657885]
[1765570998092,0.001,3079.0,3078.9,6.7541755]
[1765571000353,0.001,3079.0,3078.9,3.9135885]
[1765571002840,0.4954,3079.0,3078.4,0.0852]
[1765571003042,0.001,3079.0,3078.8,3.24795428]
[1765571003248,0.001,3079.0,3078.9,0.58047529]
[1765571004656,0.001,3079.0,3078.5,0.09444716]
[1765571004657,0.9697,3079.0,3078.5,0.09444716]
[1765571004956,0.4944,3078.6,3078.2,3.2486518]
[1765571005253,0.4944,3078.6,3078.3,0.58047529]
[1765571005459,0.4944,3078.6,3078.5,0.58047529]
[1765571005612,0.001,3079.0,3078.5,0.66567529]
[1765571005812,0.4753,3079.0,3078.5,0.76012245]
[1765571006016,0.001,3079.0,3078.9,0.0852]
[1765571006215,0.001,3079.0,3078.9,0.1704]
[1765571006616,0.001,3079.0,3078.9,0.0852]
[1765571010760,0.001,3079.0,3078.9,3.9135885]
[1765571012170,0.4954,3079.0,3078.9,3.8283885]
[1765571012327,0.9697,3079.0,3078.9,0.58047529]
[1765571012527,0.9697,3079.0,3078.9,3.8283885]
[1765571013456,0.9697,3079.0,3078.9,0.58047529]
[1765571014646,0.9697,3079.0,3078.9,3.8283885]
[1765571016657,0.4954,3079.0,3078.9,3.8283885]
[1765571018929,0.001,3079.0,3078.9,3.8283885]
[1765571019147,0.9697,3079.0,3078.9,3.8283885]
[1765571019345,0.001,3079.0,3078.9,3.9135885]
[1765571020961,0.001,3079.0,3078.9,3.9987885]
[1765571021136,0.001,3079.0,3078.9,3.9135885]
[1765571021532,0.001,3079.0,3078.9,3.9987885]
[1765571021762,0.001,3079.0,3078.9,3.9135885]
[1765571022134,0.001,3079.0,3078.9,26.5575875]
[1765571022440,0.001,3079.0,3078.9,13.35801246]
[1765571023046,0.001,3079.0,3078.9,4.53428946]
[1765571023341,0.001,3079.0,3078.9,14.81323146]
[1765571023958,0.001,3079.0,3078.9,12.5427025]
[1765571024164,0.001,3079.0,3078.9,13.0716185]
[1765571024464,0.001,3079.0,3078.9,12.8463595]
[1765571025153,0.001,3079.0,3078.9,13.1282565]
[1765571025671,0.001,3079.0,3078.9,13.0430565]
[1765571025848,0.001,3079.0,3078.9,13.1282565]
[1765571026051,0.001,3079.0,3078.9,7.6174675]
[1765571026364,0.001,3079.0,3078.9,7.5316235]
[1765571026543,0.001,3079.0,3078.9,6.9948345]
[1765571027162,0.001,3079.0,3078.9,4.4305885]
[1765571027475,0.001,3079.0,3078.9,6.1375335]
[1765571027664,0.001,3079.0,3078.9,6.6545335]
[1765571028373,0.001,3079.0,3078.9,3.9135885]
[1765571028579,0.4954,3079.0,3078.9,3.24791321]
[1765571028778,0.9697,3079.0,3078.5,0.64701766]
[1765571029133,0.4944,3078.6,3078.2,3.24858778]
[1765571029245,0.4944,3078.4,3078.2,6.49723958]
[1765571029446,0.4944,3078.4,3078.3,0.58047529]
[1765571029945,0.4743,3078.7,3078.3,0.58047529]
[1765571031574,0.4743,3078.7,3078.4,3.24844074]
[1765571032080,0.493,3078.5,3078.4,3.82891603]
[1765571034171,0.493,3078.5,3078.4,0.58047529]
[1765571034172,0.9495,3078.5,3078.4,0.58047529]
[1765571035348,0.9495,3078.5,3078.4,3.82891603]
[1765571035549,0.1912,3078.9,3078.4,3.82891603]
[1765571035550,0.4565,3078.8,3078.4,3.82891603]
[1765571035967,0.493,3078.5,3078.4,3.82891603]
[1765571037056,0.1912,3078.9,3078.4,3.91411603]
[1765571037290,0.493,3078.5,3077.1,0.002]
[1765571037594,8.8542206,3078.8,3077.1,0.002]
[1765571037595,0.6778,3077.2,3077.1,0.002]
[1765571037912,0.493,3077.2,3077.1,0.002]
[1765571038198,0.6406,3077.5,3077.1,0.002]
[1765571038366,0.493,3077.2,3077.1,0.002]
[1765571038902,0.9495,3077.2,3077.1,0.002]
[1765571040068,0.493,3077.2,3077.1,0.002]
[1765571040377,0.9495,3077.2,3077.1,0.002]
[1765571040768,4.71620752,3077.2,3077.1,0.002]
[1765571040969,8.76249471,3077.2,3076.9,0.002]
[1765571041171,0.1828,3077.0,3076.9,0.002]
[1765571041566,0.6393,3077.0,3076.9,0.002]
[1765571043497,3.88921875,3077.0,3076.9,0.002]
[1765571044407,0.6393,3077.0,3076.9,0.002]
[1765571044852,3.88921875,3077.0,3076.9,0.002]
[1765571045032,4.65481232,3077.0,3076.9,0.002]
[1765571045214,0.94839357,3077.0,3076.9,0.002]
[1765571045422,0.6406,3077.5,3076.9,0.4717]
[1765571045910,0.4565,3077.4,3076.9,0.4717]
[1765571046720,0.493,3077.0,3076.9,0.002]
[1765571047744,4.71641875,3077.0,3076.9,0.002]
[1765571047960,5.51304084,3077.0,3076.9,0.002]
[1765571054467,1.28962209,3077.0,3076.9,0.002]
[1765571054783,3.4335726,3077.5,3076.9,0.4717]
[1765571054994,0.1841,3077.5,3076.9,0.4717]
[1765571055335,3.4335029,3077.5,3076.9,0.4717]
[1765571055739,7.1394058,3077.5,3076.9,0.4717]
[1765571055943,0.493,3077.0,3076.9,0.002]
[1765571056145,0.9495,3077.0,3076.9,0.002]
[1765571056340,0.517,3077.2,3076.9,0.002]
[1765571057060,0.517,3077.2,3076.9,3.25200908]
[1765571057273,0.517,3077.2,3076.9,0.002]
[1765571057562,1.22214058,3077.4,3076.9,0.002]
[1765571057741,4.47165289,3077.4,3076.9,0.002]
[1765571057943,0.4565,3077.3,3076.9,0.002]
[1765571058474,3.95050057,3077.5,3076.9,0.002]
[1765571058475,0.517,3077.5,3076.9,0.002]
[1765571058777,0.4506,3077.4,3076.9,0.002]
[1765571059540,0.4609,3077.0,3076.9,0.002]
[1765571060055,0.9115,3077.0,3076.9,0.002]
[1765571061180,0.4609,3077.0,3076.9,0.002]
[1765571063392,0.4524,3077.0,3076.9,0.002]
[1765571064594,4.16961875,3077.0,3076.9,0.002]
[1765571064964,5.42855425,3077.0,3076.9,0.002]
[1765571075498,3.24925629,3077.7,3076.9,0.9468]
[1765571075660,3.24925629,3077.7,3077.0,0.57604716]
[1765571076068,0.517,3077.8,3077.1,0.1884]
[1765571076563,3.76608247,3077.8,3077.2,0.4816]
[1765571077495,3.76608247,3077.8,3077.2,3.73130691]
[1765571077699,3.76608247,3077.8,3077.3,0.09444716]
[1765571078300,0.517,3077.8,3077.3,0.09444716]
[1765571078466,0.517,3077.8,3077.7,0.4632]
[1765571078674,0.517,3077.8,3077.4,0.4816]
[1765571079821,0.517,3077.8,3077.3,0.09444716]
[1765571080375,0.517,3077.8,3077.3,3.34400712]
[1765571080577,0.517,3077.8,3077.3,3.82560712]
[1765571083600,0.517,3077.8,3077.7,0.4632]
[1765571083810,0.001,3078.4,3077.7,0.4632]
[1765571083970,0.517,3078.3,3077.7,0.9448]
[1765571084177,0.517,3078.3,3077.8,0.09444716]
[1765571084471,0.517,3078.3,3077.7,0.4632]
[1765571084673,0.517,3078.3,3077.7,0.55764716]
[1765571085017,1.36094578,3078.3,3077.7,0.4632]
[1765571085508,3.24875735,3078.1,3077.7,0.4632]
[1765571086203,3.71598424,3078.2,3077.7,0.4632]
[1765571086608,0.4524,3077.8,3077.4,3.73105582]
[1765571086813,0.4524,3077.8,3077.3,3.92445558]
[1765571086978,0.4673,3078.1,3077.6,3.24928144]
[1765571087417,0.4673,3078.1,3077.5,3.34381978]
[1765571087706,0.4673,3078.1,3077.4,3.73102061]
[1765571087707,3.71606579,3078.1,3077.4,3.73102061]
[1765571087912,0.4673,3078.1,3077.5,3.24934382]
[1765571088079,4.14225019,3078.3,3077.5,7.07478171]
[1765571088494,4.14225019,3078.3,3077.6,0.4816]
[1765571088693,4.60955019,3078.3,3077.6,0.4816]
[1765571088897,0.46105502,3078.2,3077.6,0.4816]
[1765571089692,3.70972372,3078.2,3077.6,3.73085274]
[1765571089892,0.9843,3078.3,3077.6,3.73085274]
[1765571089893,0.001,3078.4,3078.1,0.4632]
[1765571090081,0.001,3078.4,3078.3,0.4632]
[1765571090397,3.24947853,3078.4,3077.8,0.6625]
[1765571090596,3.71337853,3078.4,3077.8,0.6625]
[1765571091719,3.71337853,3078.4,3077.9,0.58047529]
[1765571092013,0.4649,3078.4,3077.9,0.58047529]
[1765571092213,3.71335369,3078.4,3077.9,0.58047529]
[1765571092818,0.4639,3078.3,3077.9,0.58047529]
[1765571093191,0.001,3078.4,3077.9,1.03077529]
[1765571093510,0.001,3078.4,3078.2,0.4636]
[1765571093710,0.001,3078.4,3077.9,1.03077529]
[1765571093916,0.001,3078.4,3078.0,3.24886289]
[1765571094228,0.001,3078.4,3077.9,4.27969416]
[1765571094989,0.001,3078.4,3078.0,0.4503]
[1765571095212,0.001,3078.4,3078.3,0.4636]
[1765571095818,0.001,3078.4,3078.3,0.9139]
[1765571096013,0.001,3078.4,3078.3,0.4636]
[1765571096218,0.4655,3078.4,3077.9,0.09444716]
[1765571096407,0.4655,3078.4,3077.9,0.54474716]
[1765571097521,0.4655,3078.4,3078.0,3.2487774]
[1765571098094,0.001,3078.4,3078.3,0.4636]
[1765571099920,0.4655,3078.4,3077.9,0.09444716]
[1765571100124,0.4655,3078.4,3077.8,0.1809]
[1765571100125,0.4639,3078.3,3077.8,0.1809]
[1765571100291,0.4655,3078.4,3077.9,3.248949]
[1765571100510,0.4655,3078.4,3078.3,0.4636]
[1765571100511,0.001,3078.4,3078.3,0.4636]
[1765571101236,0.001,3078.4,3077.8,0.1809]
[1765571101237,0.9294,3078.4,3077.8,3.24902553]
[1765571101406,0.9294,3078.4,3077.3,3.24960192]
[1765571101407,0.4618,3077.9,3077.3,3.24960192]
[1765571101611,0.4618,3077.9,3077.4,0.09444716]
[1765571102013,0.4618,3077.9,3077.4,0.4503]
[1765571102315,6.38317714,3077.5,3076.9,0.002]
[1765571102509,0.9809,3077.8,3076.9,0.002]
[1765571102510,0.2096,3077.0,3076.9,0.002]
[1765571102709,0.7266,3077.0,3076.9,0.002]
[1765571102932,1.1905,3077.0,3076.9,0.002]
[1765571103509,5.17707646,3077.0,3076.9,0.002]
[1765571103844,5.58258046,3077.0,3076.9,0.002]
[1765571105926,6.16305575,3077.0,3076.9,0.002]
[1765571106123,0.6479,3076.5,3075.9,0.002]
[1765571106345,0.517,3076.4,3075.9,0.002]
[1765571106521,6.64057714,3076.0,3075.9,0.002]
[1765571106722,1.64555771,3076.0,3075.9,0.002]
[1765571106923,2.10945771,3076.0,3075.9,0.002]
[1765571107735,0.517,3076.0,3075.9,0.002]
[1765571108118,0.517,3076.0,3075.9,0.4656]
[1765571108316,0.517,3076.0,3075.9,0.9159]
[1765571108648,0.4639,3076.7,3075.9,0.9159]
[1765571108649,0.517,3076.4,3075.9,0.9159]
[1765571109040,0.517,3076.4,3076.0,0.4503]
[1765571109422,0.517,3076.4,3076.1,0.1794]
[1765571109951,0.517,3076.4,3076.3,0.4636]
[1765571110716,0.517,3076.7,3076.3,0.9139]
[1765571112058,4.23118463,3076.7,3076.3,0.4636]
[1765571112348,0.517,3076.7,3076.3,0.4636]
[1765571112723,3.76725889,3076.7,3076.3,0.4636]
[1765571113154,4.23115889,3076.7,3076.3,0.4636]
[1765571113652,0.517,3076.7,3076.3,0.4636]
[1765571114122,0.517,3076.7,3076.3,0.9139]
[1765571114319,0.517,3076.7,3076.6,0.4636]
[1765571114523,0.1834,3077.4,3076.6,0.4636]
[1765571114724,0.517,3077.3,3077.0,0.4636]
[1765571114948,1.37587907,3077.3,3076.1,0.27384716]
[1765571115131,0.4645,3076.7,3076.2,3.2507448]
[1765571115333,0.4645,3076.7,3076.1,0.1794]
[1765571115652,0.4645,3076.7,3076.1,3.4302663]
[1765571116640,3.71475565,3076.7,3076.1,3.4302663]
[1765571116950,3.71475565,3076.7,3076.1,0.1794]
[1765571117341,0.4645,3076.7,3076.1,3.43022164]
[1765571117728,3.71474447,3076.7,3076.1,0.6297]
[1765571118370,6.96498894,3076.7,3076.1,0.6297]
[1765571118541,8.23036563,3076.7,3076.1,0.1794]
[1765571118742,4.98012116,3076.7,3076.1,0.1794]
[1765571119568,8.23036563,3076.7,3076.1,0.1794]
[1765571119855,4.98012116,3076.7,3075.9,0.4754]
[1765571120422,4.98012116,3076.7,3076.0,3.25096573]
[1765571120635,0.54971212,3076.6,3075.9,3.25304548]
[1765571120977,1.00491212,3076.6,3075.9,3.25304548]
[1765571121844,1.00491212,3076.6,3075.9,3.72784548]
[1765571122056,1.00491212,3076.6,3075.9,0.002]
[1765571122057,0.4552,3076.5,3075.9,0.002]
[1765571122245,0.517,3076.4,3075.9,0.002]
[1765571122759,0.4552,3076.3,3075.9,0.002]
[1765571123765,0.4963,3076.0,3075.9,0.002]
[1765571124161,1.4685,3076.0,3075.9,0.002]
[1765571124750,4.71947529,3076.0,3075.9,0.002]
[1765571126059,0.4963,3076.0,3075.9,0.002]
[1765571126260,4.26427529,3076.0,3075.9,0.002]
[1765571126464,5.47098038,3076.0,3075.9,0.002]
[1765571126861,1.76480509,3076.0,3075.9,0.002]
[1765571127066,0.517,3076.0,3075.9,0.002]
[1765571127571,0.517,3076.0,3075.9,0.453]
[1765571127927,1.0133,3076.0,3075.9,0.002]
[1765571129072,0.517,3076.0,3075.9,0.453]
[1765571130263,3.25044693,3076.5,3075.9,0.453]
[1765571130467,3.25035842,3076.6,3076.4,0.451]
[1765571130681,1.16704949,3076.6,3076.5,0.451]
[1765571130994,0.517,3076.6,3076.5,0.451]
[1765571131678,1.0133,3076.6,3076.1,3.72560566]
[1765571131869,4.26366206,3076.6,3076.1,0.6542]
[1765571132065,0.4552,3076.5,3075.9,0.002]
[1765571132377,0.1796,3076.2,3075.9,3.25307286]
[1765571132677,3.76736206,3076.6,3075.9,3.72787286]
[1765571132859,0.517,3076.6,3076.5,0.451]
[1765571133060,0.89371989,3076.6,3076.5,0.451]
[1765571133261,0.517,3076.6,3076.5,0.451]
[1765571133957,0.517,3077.1,3076.5,0.9258]
[1765571134313,0.517,3077.1,3077.0,0.451]
[1765571134958,0.517,3077.1,3076.6,0.4748]
[1765571135159,0.517,3077.1,3076.6,3.72513879]
[1765571135363,3.76683285,3077.1,3076.6,0.4748]
[1765571137068,0.517,3077.1,3076.6,0.4748]
[1765571137284,3.76681778,3077.1,3076.6,0.4748]
[1765571137457,3.76681778,3077.1,3076.2,0.09444716]
[1765571137784,7.47183556,3077.1,3076.4,0.09444716]
[1765571137995,4.22201778,3077.1,3076.4,3.34499264]
[1765571138574,4.22201778,3077.1,3076.4,3.81979264]
[1765571138996,4.22201778,3077.1,3076.4,0.56924716]
[1765571139408,8.21901041,3077.1,3076.2,0.09444716]
[1765571139577,0.4963,3076.5,3076.0,0.4748]
[1765571139776,0.4552,3077.0,3076.2,3.25067153]
[1765571140111,0.4552,3077.0,3076.4,0.451]
[1765571140281,1.27710104,3077.0,3076.4,0.451]
[1765571140607,1.27710104,3077.0,3076.4,3.70151309]
[1765571140780,0.82190104,3077.0,3076.4,3.70151309]
[1765571140979,3.76683406,3077.1,3076.9,0.451]
[1765571141289,0.517,3077.1,3077.0,0.451]
[1765571141495,3.76681313,3077.1,3076.5,0.4748]
[1765571141693,0.517,3077.1,3076.5,0.4748]
[1765571142198,3.76683852,3077.1,3076.5,0.4748]
[1765571142408,0.517,3077.1,3076.5,0.4748]
[1765571142584,3.76681343,3077.1,3076.5,0.4748]
[1765571142790,7.01662686,3077.1,3076.5,0.4748]
[1765571143098,8.17347013,3077.1,3076.4,0.09444716]
[1765571143782,8.17347013,3077.1,3076.4,3.34498637]
[1765571144079,4.9236567,3077.1,3076.4,3.34498637]
[1765571144300,8.17347013,3077.1,3076.3,3.25062928]
[1765571144685,8.17347013,3077.1,3076.4,3.25052705]
[1765571144889,4.4684567,3077.1,3076.4,3.25052705]
[1765571145194,4.4684567,3077.1,3076.4,3.72532705]
[1765571145375,0.77181683,3077.0,3076.4,3.72532705]
[1765571145579,4.22201343,3077.1,3076.4,3.72532705]
[1765571146614,7.47182686,3077.1,3076.4,0.4748]
[1765571146802,4.22201343,3077.1,3076.4,0.56924716]
[1765571147507,0.9722,3077.1,3076.5,3.25044693]
[1765571147714,3.24907401,3077.8,3077.0,0.451]
[1765571147914,0.38295493,3077.6,3077.1,0.451]
[1765571148083,0.517,3077.7,3077.1,0.451]
[1765571148414,0.517,3077.7,3077.2,0.1537]
[1765571148787,0.517,3077.7,3077.2,0.6285]
[1765571149088,0.9722,3077.7,3076.9,0.4748]
[1765571149329,0.9722,3077.7,3077.0,0.09444716]
[1765571149508,6.49878146,3077.5,3076.7,3.34466333]
[1765571149815,3.24939073,3077.5,3076.7,3.34466333]
[1765571150017,3.70459073,3077.5,3076.7,3.34466333]
[1765571150213,3.70459073,3077.5,3076.8,0.4819]
[1765571150414,3.24935526,3077.6,3076.8,0.57634716]
[1765571151712,3.24935526,3077.6,3076.9,3.25002437]
[1765571151915,0.4849,3077.5,3076.8,0.09444716]
[1765571152123,0.4849,3077.5,3076.6,0.73417529]
[1765571152283,0.4849,3077.5,3076.3,0.1537]
[1765571152717,0.4781,3076.4,3075.9,0.66569432]
[1765571152900,0.4781,3076.4,3075.9,0.09644716]
[1765571153111,0.4849,3076.3,3075.9,0.002]
[1765571153712,3.73561203,3076.3,3075.9,0.002]
[1765571153913,0.4849,3076.3,3075.9,0.002]
[1765571154617,3.73555948,3076.3,3075.9,0.002]
[1765571155117,3.25062958,3076.4,3075.9,0.002]
[1765571155421,3.25049078,3076.5,3075.9,0.002]
[1765571155615,4.25228708,3076.6,3075.9,0.002]
[1765571156415,0.4781,3076.0,3075.9,0.002]
[1765571156621,0.9951,3076.0,3075.9,0.002]
[1765571156798,1.885504,3076.0,3075.9,0.002]
[1765571157795,4.21397529,3076.0,3075.9,0.002]
[1765571158113,4.73097529,3076.0,3075.9,0.002]
[1765571158315,5.52915901,3076.0,3075.9,0.002]
[1765571158923,5.93466301,3076.0,3075.9,0.002]
[1765571159094,6.5151383,3076.0,3075.9,0.002]